fUSD/lending_fUSD_20250227
["ID","MTS","AMOUNT","RATE_DAILY","PERIOD"]
[354730172,1740648640092,-2332463.80690242,0.00015,2]
[354730174,1740648640102,-150.0,0.00015164,2]
[354730176,1740648640112,-154.84752053,0.0001561,2]
[354730178,1740648640121,-170.79286561,0.00015923,2]
[354730180,1740648640131,-150.0,0.00016123,2]
[354730182,1740648640140,-420.0,0.00016308,2]
[354730184,1740648640149,-150.0,0.0001639,2]
[354730186,1740648640159,-450.0,0.000165,2]
[354730188,1740648640168,-62703.33930378,0.0001759,2]
[354730190,1740648640177,-587.0,0.0001785,2]
[354730192,1740648640186,-1703.76969982,0.000181,2]
[354730194,1740648640195,-1300.75577455,0.000189,2]
[354730196,1740648640204,-486.50214429,0.00019,2]
[354730198,1740648640213,-935.40293874,0.000195,2]
[354730200,1740648640223,-823.0,0.00019538,2]
[354730202,1740648640232,-298.83042696,0.0002,2]
[354730204,1740648640241,-10000.0,0.0002,2]
[354730206,1740648640250,-1471.0882932,0.0002,2]
[354730208,1740648640259,-4269.43571343,0.0002,2]
[354730210,1740648640268,-3839.62133421,0.0002,2]
[354730212,1740648640278,-7500.0,0.0002,2]
[354730214,1740648640287,-45806.54367065,0.0002,2]
[354730216,1740648640296,-3950.0,0.0002,2]
[354730218,1740648640305,-1241.83981982,0.0002,2]
[354730220,1740648640315,-241.78840426,0.0002,2]
[354730222,1740648640325,-161.19226951,0.0002,2]
[354730224,1740648640334,-11748.91441347,0.0002,2]
[354730226,1740648640343,-11730.71034132,0.0002011,2]
[354730228,1740648640352,-41781.14833529,0.0002015,2]
[354730230,1740648640361,-1661.45595593,0.0002015,2]
[354730233,1740648640370,-150.99999929,0.000205,2]
[354730235,1740648640379,-250.0,0.00021,2]
[354730237,1740648640388,-1152.0,0.00021385,2]
[354730239,1740648640398,-201.36678704,0.000214,2]
[354730241,1740648640407,-261.55,0.00022237,2]
[354730243,1740648640416,-261.55,0.00022354,2]
[354730245,1740648640425,-261.55,0.00022471,2]
[354730247,1740648640434,-261.55,0.00022588,2]
[354730249,1740648640443,-261.55,0.00022705,2]
[354730251,1740648640452,-261.55,0.00022822,2]
[354730253,1740648640461,-261.55,0.00022939,2]
[354730255,1740648640470,-300.0,0.00023,2]
[354730257,1740648640480,-261.55,0.00023056,2]
[354730259,1740648640489,-261.55,0.00023173,2]
[354730261,1740648640499,-261.55,0.0002329,2]
[354730263,1740648640508,-261.55,0.00023407,2]
[354730265,1740648640517,-335.0,0.00023407,2]
[354730267,1740648640526,-261.55,0.00023524,2]
[354730269,1740648640535,-261.55,0.00023641,2]
[354730271,1740648640544,-261.55,0.00023758,2]
[354730273,1740648640554,-261.55,0.00023875,2]
[354730275,1740648640563,-205.38495184,0.00023936,2]
[354730277,1740648640573,-261.55,0.00023992,2]
[354730279,1740648640583,-261.55,0.00024109,2]
[354730281,1740648640595,-261.55,0.00024226,2]
[354730283,1740648640604,-261.55,0.00024343,2]
[354730285,1740648640613,-261.55,0.0002446,2]
[354730287,1740648640622,-350.0,0.00025,2]
[354730289,1740648640631,-16283.8435423,0.00025,2]
[354730291,1740648640640,-11238.13270414,0.0002501,2]
[354730293,1740648640649,-3234.31572177,0.000251,2]
[354730295,1740648640658,-192.59,0.00025581,2]
[354730297,1740648640669,-300.0,0.000258,2]
[354730299,1740648640678,-300.0,0.000258,2]
[354730301,1740648640687,-300.0,0.000258,2]
[354730303,1740648640696,-300.0,0.000258,2]
[354730305,1740648640705,-585.16984655,0.000258,2]
[354730307,1740648640714,-49361.13357974,0.0002597,2]
[354730309,1740648640723,-1996.47051632,0.000264,2]
[354730311,1740648640732,-153.41,0.00026849,2]
[354730313,1740648640741,-400.0,0.00027,2]
[354730315,1740648640750,-22846.51055287,0.00028278,2]
[354730317,1740648640760,-9999.999999,0.00028278,2]
[354730319,1740648640768,-22103.17482321,0.00028278,2]
[354730321,1740648640778,-21088.58410156,0.00028278,2]
[354730323,1740648640787,-15456.11452594,0.00028278,2]
[354730325,1740648640796,-9930.78238034,0.00028278,2]
[354730327,1740648640805,-743.50119354,0.00028278,2]
[354730329,1740648640816,-1441.76999097,0.00034,2]
[354730331,1740648640826,-192.59,0.00035814,2]
[354730333,1740648640835,-341.53864426,0.0003615,2]
[354730335,1740648640845,-153.41,0.00039087,2]
[354730337,1740648640854,-567.82,0.00040845,2]
[354730339,1740648640863,-567.82,0.00043109,2]
[354730341,1740648640872,-1305.73972739,0.0004462,2]
[354730343,1740648640881,-567.82,0.00045373,2]
[354730345,1740648640890,-150.0,0.00045828,2]
[354730347,1740648640899,-1000.0,0.00045828,2]
[354730348,1740648640908,-641.18,0.00046737,2]
[354730350,1740648640917,-150.99,0.00046737,2]
[354730352,1740648640926,-2368.77,0.00046737,2]
[354730354,1740648640935,-9999.99,0.00046737,2]
[354730356,1740648640944,-999.99,0.00046737,2]
[354730358,1740648640953,-567.82,0.00047637,2]
[354730360,1740648640962,-302.151,0.00048677,2]
[354730362,1740648640972,-3923.0,0.00048677,2]
[354730364,1740648640981,-1276.0,0.00048677,2]
[354730366,1740648640990,-150.0,0.00048677,2]
[354730368,1740648640999,-603.0,0.00048677,2]
[354730370,1740648641008,-184.35,0.00048766,2]
[354730372,1740648641017,-150.0,0.000489,2]
[354730374,1740648641026,-151.0,0.00049507,120]
[354730376,1740648641036,-500.0,0.000499,2]
[354730378,1740648641045,-567.82,0.00049901,2]
[354730380,1740648641054,-151.7249457,0.00050103,120]
[354730382,1740648641063,-191.03,0.00050677,30]
[354730384,1740648641073,-152.11,0.00051245,2]
[354730386,1740648641082,-150.0,0.000513,7]
[354730388,1740648641091,-153.41,0.00051324,2]
[354730390,1740648641100,-200.0,0.00051394,2]
[354730392,1740648641110,-1000.0,0.00051557,120]
[354730394,1740648641119,-250.0,0.00051578,120]
[354730396,1740648641128,-4400.0,0.00051589,2]
[354730412,1740648641258,-799.232,0.00051643,93]
[354730414,1740648641267,-3911.0,0.00051677,120]
[354730416,1740648641277,-827.788,0.00051677,120]
[354730418,1740648641287,-150.0,0.00051677,120]
[354730420,1740648641295,-151.0,0.00051753,120]
[354730422,1740648641304,-2000.0,0.00051826,120]
[354730424,1740648641314,-567.82,0.00052165,2]
[354730426,1740648641324,-150.0,0.000526,2]
[354730428,1740648641333,-23900.0,0.00052824,2]
[354730430,1740648641342,-180.84,0.00052958,2]
[354730431,1740648641351,-3031.59039854,0.00053501,120]
[354730433,1740648641360,-151.0,0.00054,120]
[354730436,1740648641377,-567.82,0.00054429,2]
[354730439,1740648641388,-4000.0,0.00054795,30]
[354730441,1740648641398,-1500.0,0.00054798,120]
[354730443,1740648641407,-1534.0,0.000548,2]
[354730445,1740648641417,-166.6,0.00054852,120]
[354730447,1740648641426,-1373.82258219,0.000558,30]
[354730449,1740648641436,-1551.03564,0.0005593,89]
[354730451,1740648641445,-100414.17681096,0.00056,120]
[354730453,1740648641455,-5000.0,0.00056,8]
[354730455,1740648641464,-151.0,0.00056247,120]
[354730457,1740648641473,-291.86285277,0.00056286,120]
[354730458,1740648641483,-149911.96625518,0.000565,120]
[354730459,1740648641492,-941.90097527,0.000565,15]
[354730460,1740648641501,-200.0,0.000565,15]
[354730461,1740648641511,-500.0,0.000565,120]
[354730462,1740648641521,-500.0,0.000565,120]
[354730463,1740648641531,-500.0,0.000565,120]
[354730464,1740648641541,-500.0,0.000565,120]
[354730465,1740648641550,-500.0,0.000565,120]
[354730466,1740648641559,-500.0,0.000565,120]
[354730467,1740648641570,-500.0,0.000565,120]
[354730468,1740648641582,-500.0,0.000565,120]
[354730469,1740648641592,-500.0,0.000565,120]
[354730471,1740648641602,-500.0,0.000565,120]
[354730473,1740648641612,-500.0,0.000565,120]
[354730475,1740648641621,-500.0,0.000565,120]
[354730477,1740648641632,-500.0,0.000565,120]
[354730479,1740648641642,-500.0,0.000565,120]
[354730481,1740648641651,-500.0,0.000565,120]
[354730483,1740648641664,-500.0,0.000565,120]
[354730485,1740648641674,-500.0,0.000565,120]
[354730487,1740648641683,-500.0,0.000565,120]
[354730490,1740648641694,-500.0,0.000565,120]
[354730492,1740648641704,-500.0,0.000565,120]
[354730494,1740648641713,-500.0,0.000565,120]
[354730496,1740648641723,-500.0,0.000565,120]
[354730498,1740648641732,-500.0,0.000565,120]
[354730500,1740648641742,-500.0,0.000565,120]
[354730501,1740648641752,-500.0,0.000565,120]
[354730504,1740648641761,-500.0,0.000565,120]
[354730506,1740648641770,-500.0,0.000565,120]
[354730507,1740648641780,-500.0,0.000565,120]
[354730510,1740648641789,-500.0,0.000565,120]
[354730511,1740648641799,-500.0,0.000565,120]
[354730513,1740648641808,-500.0,0.000565,120]
[354730515,1740648641817,-500.0,0.000565,120]
[354730518,1740648641827,-904.0,0.000565,120]
[354730519,1740648641836,-500.0,0.000565,120]
[354730521,1740648641846,-500.0,0.000565,120]
[354730523,1740648641855,-500.0,0.000565,120]
[354730526,1740648641864,-500.0,0.000565,120]
[354730528,1740648641874,-500.0,0.000565,120]
[354730529,1740648641883,-500.0,0.000565,120]
[354730531,1740648641892,-500.0,0.000565,120]
[354730533,1740648641901,-500.0,0.000565,120]
[354730536,1740648641910,-696.0,0.000565,120]
[354730538,1740648641919,-500.0,0.000565,120]
[354730539,1740648641928,-500.0,0.000565,120]
[354730541,1740648641938,-500.0,0.000565,120]
[354730543,1740648641947,-500.0,0.000565,120]
[354730545,1740648641957,-500.0,0.000565,120]
[354730547,1740648641966,-500.0,0.000565,120]
[354730549,1740648641975,-518.0,0.000565,120]
[354730551,1740648641984,-567.82,0.00056693,2]
[354730553,1740648641993,-291.86285277,0.00056835,120]
[354730555,1740648642003,-5630.0,0.00056892,120]
[354730557,1740648642012,-67236.9412,0.000569,2]
[354730559,1740648642021,-195.91196861,0.000569,35]
[354730562,1740648642030,-323.10403713,0.000569,66]
[354730564,1740648642039,-164.70362379,0.000569,35]
[354730566,1740648642048,-872.45039812,0.000569,28]
[354730568,1740648642058,-1096.20889829,0.000569,30]
[354730570,1740648642067,-343.0,0.0005696,30]
[354730571,1740648642076,-343.0,0.0005697,30]
[354730573,1740648642085,-343.0,0.0005698,30]
[354730576,1740648642095,-1000000.0,0.00057,120]
[354730578,1740648642104,-507547.55226824,0.00057,120]
[354730955,1740648645721,-504.60034,0.00057,120]
[354730967,1740648645829,-1048.50212,0.00057,120]
[354731418,1740648694856,500.0,0.00049315,120]
[354731419,1740649562661,280.62157018,0.00046599,60]
[354731424,1740649831969,-150.0,0.00019938,2]
[354731425,1740649831979,-250.0,0.00021,2]
[354731426,1740649831988,-150.0,0.00021775,2]
[354731427,1740649831997,-150.0,0.00021903,2]
[354731428,1740649832007,-300.0,0.00023,2]
[354731429,1740649832015,-350.0,0.00025,2]
[354731430,1740649832025,-1992.28933306,0.00025,2]
[354731431,1740649832034,-167.5,0.00026849,2]
[354731432,1740649832044,-400.0,0.00027,2]
[354731433,1740649832053,-450.0,0.00029,2]
[354731434,1740649832063,-500.0,0.00031,2]
[354731435,1740649832072,-550.0,0.00033,2]
[354731436,1740649832081,-600.0,0.00035,2]
[354731437,1740649832091,-219.32,0.00035,2]
[354731438,1740649832100,-167.5,0.00045205,2]
[354731439,1740649832110,-1534.78450859,0.000466,2]
[354731440,1740649832119,-504.0,0.00047452,2]
[354731441,1740649832128,-374.33,0.00048348,2]
[354731442,1740649832138,-150.99,0.00048348,2]
[354731443,1740649832147,-315.68597778,0.0005,120]
[354731444,1740649832156,-395.27,0.00050002,2]
[354731445,1740649832165,-153.17,0.00051617,2]
[354731446,1740649832174,-152.29632291,0.00051653,120]
[354731447,1740649832185,-847.70367709,0.00051653,120]
[354731448,1740649832195,-150.0,0.00052009,7]
[354731449,1740649832204,-153.17,0.00052191,2]
[354731450,1740649832214,-395.27,0.00052266,2]
[354731451,1740649832223,-153.17,0.00052765,2]
[354731452,1740649832232,-153.17,0.00053338,2]
[354731453,1740649832242,-250.0,0.00053694,120]
[354731454,1740649832251,-201.42389269,0.000539,13]
[354731455,1740649832262,-153.17,0.00053912,2]
[354731456,1740649832271,-6001.86215343,0.00053944,2]
[354731457,1740649832291,-17898.13784657,0.00053944,2]
[354731458,1740649832301,-213.38,0.00054197,120]
[354731459,1740649832311,-153.17,0.00054485,2]
[354731460,1740649832322,-612.37,0.00054522,2]
[354731461,1740649832331,-395.27,0.0005453,2]
[354731462,1740649832341,-200.0,0.00054618,30]
[354731463,1740649832351,-153.17,0.00055059,2]
[354731464,1740649832360,-170.1811,0.000551,7]
[354731465,1740649832370,-4000.0,0.00055211,30]
[354731466,1740649832379,-300.0,0.00055225,2]
[354731467,1740649832388,-169.17,0.0005539,2]
[354731468,1740649832397,-153.17,0.00055632,2]
[354731469,1740649832408,-1970.07381464,0.00056,120]
[354731470,1740649832419,-153.17,0.00056206,2]
[354731472,1740649832428,-1292.5297,0.0005643,91]
[354731474,1740649832437,-153.17,0.00056779,2]
[354731476,1740649832446,-395.27,0.00056794,2]
[354731478,1740649832455,-289.953,0.000569,2]
[354731480,1740649832464,-10429.68665992,0.000569,2]
[354731482,1740649832475,-714.51374008,0.000569,2]
[354731484,1740649832484,-611.93626492,0.000569,2]
[354731486,1740649832495,-874.50543508,0.000569,2]
[354731488,1740649832504,-462.99456492,0.000569,120]
[354731491,1740649832522,-462.95570484,0.000569,120]
[354731493,1740649832533,-259.56,0.000569,120]
[354731496,1740649832544,-4454.39995,0.000569,120]
[354731498,1740649832555,-2154.29998878,0.000569,120]
[354731500,1740649832566,-685.05424735,0.000569,120]
[354731502,1740649832577,-498.92723845,0.000569,120]
[354731506,1740649832609,-1021.80830566,0.000569,120]
[354731508,1740649832618,-1143.60317514,0.000569,28]
[354731510,1740649832627,-4506.62935419,0.000569,15]
[354731512,1740649832637,-2500.0,0.000569,2]
[354731514,1740649832646,-168.6120684,0.00056972,28]
[354731516,1740649832655,-313.71295702,0.00056972,2]
[354731518,1740649832665,-154.13805979,0.00056972,15]
[354731520,1740649832675,-500.0,0.00056999,120]
[354731522,1740649832684,-230.95620257,0.00056999,120]
[354731524,1740649832694,-189.119,0.00056999,110]
[354731526,1740649832704,-442.93183162,0.00056999,120]
[354731528,1740649832713,-500.0,0.00056999,120]
[354731530,1740649832723,-500.0,0.00056999,120]
[354731532,1740649832732,-584.59363983,0.00056999,120]
[354731535,1740649832742,-965.772,0.00056999,110]
[354731536,1740649832752,-200.0,0.00057,15]
[354731538,1740649832761,-84198.12340579,0.00057,120]
[354731755,1740649837840,-744.05786591,0.00052252,2]
[354731756,1740649837895,-1943.46898318,0.00052252,2]
[354731757,1740649838002,-252.35315091,0.00052252,2]
[354731758,1740649838011,-530.54184909,0.00057,120]
[354731759,1740649838112,-5503.10171195,0.00057,120]
[354731760,1740649838123,-6642.96451513,0.00057,120]
[354731761,1740649838166,-1403.50000001,0.00057,120]
[354731931,1740649839918,-901721.76851803,0.00057,120]
[354731933,1740649839928,-4506.62935413,0.00057072,15]
[354731935,1740649839937,-291.86285279,0.00057075,2]
[354731937,1740649839948,-1000000.0,0.000571,120]
[354731939,1740649839958,-1000000.0,0.000572,120]
[354731941,1740649839970,-154.13805979,0.00057204,15]
[354731943,1740649839979,-4506.62935413,0.00057244,15]
[354731945,1740649839988,-195.91196861,0.000574,35]
[354731947,1740649839997,-420.58668709,0.000574,68]
[354731949,1740649840007,-7500.0,0.000574,120]
[354731950,1740649840016,-88888.0,0.000574,120]
[354731952,1740649840026,-8871.51112912,0.00057402,2]
[354731954,1740649840035,-202.10164818,0.00057402,2]
[354731956,1740649840044,-169.25098724,0.00057402,2]
[354731958,1740649840053,-4506.62935413,0.00057416,15]
[354731960,1740649840062,-154.13805979,0.00057436,15]
[354731974,1740649840186,-1000000.0,0.000575,120]
[354731976,1740649840196,-341.0,0.00057502,30]
[354731978,1740649840206,-229.95868919,0.00057534,16]
[354731980,1740649840215,-500.0,0.00057534,120]
[354731982,1740649840225,-500.0,0.00057534,120]
[354731984,1740649840234,-502.95134095,0.00057534,120]
[354731986,1740649840243,-500.0,0.00057534,120]
[354731988,1740649840251,-500.0,0.00057534,120]
[354731990,1740649840261,-500.0,0.00057534,120]
[354731992,1740649840270,-508.43889333,0.00057534,120]
[354731994,1740649840279,-254.85428936,0.00057534,120]
[354731996,1740649840287,-501.40555017,0.00057534,120]
[354731998,1740649840297,-799.15,0.00057534,120]
[354732000,1740649840306,-500.0,0.00057534,120]
[354732002,1740649840314,-541.35,0.00057534,120]
[354732004,1740649840324,-509.97,0.00057534,120]
[354732006,1740649840333,-505.68498532,0.00057534,120]
[354732008,1740649840342,-500.0,0.00057534,120]
[354732010,1740649840351,-476.91527066,0.00057534,120]
[354732012,1740649840360,-341.76787515,0.00057534,120]
[354732014,1740649840369,-3004.22,0.00057534,120]
[354732016,1740649840378,-508.31778592,0.00057534,120]
[354732018,1740649840387,-3993.05,0.00057534,120]
[354732020,1740649840397,-500.0,0.00057534,120]
[354732022,1740649840406,-158.23212485,0.00057534,120]
[354732024,1740649840415,-500.0,0.00057534,120]
[354732026,1740649840424,-500.0,0.00057534,120]
[354732028,1740649840433,-500.0,0.00057534,120]
[354732030,1740649840442,-500.0,0.00057534,120]
[354732032,1740649840451,-507.51682468,0.00057534,120]
[354732034,1740649840461,-500.0,0.00057534,120]
[354732036,1740649840470,-500.0,0.00057534,120]
[354732038,1740649840478,-500.0,0.00057534,120]
[354732040,1740649840487,-504.01819983,0.00057534,120]
[354732042,1740649840497,-500.39729289,0.00057534,120]
[354732044,1740649840506,-506.93440938,0.00057534,120]
[354732046,1740649840515,-500.0,0.00057534,120]
[354732048,1740649840525,-500.0,0.00057534,120]
[354732050,1740649840534,-500.0,0.00057534,120]
[354732052,1740649840543,-500.0,0.00057534,120]
[354732054,1740649840551,-500.0,0.00057534,120]
[354732056,1740649840560,-500.0,0.00057534,120]
[354732058,1740649840570,-500.0,0.00057534,120]
[354732060,1740649840579,-163.21867146,0.00057534,120]
[354732062,1740649840587,-500.0,0.00057534,120]
[354732064,1740649840597,-506.65405331,0.00057534,120]
[354732066,1740649840606,-504.2708099,0.00057534,120]
[354732068,1740649840616,-500.67702593,0.00057534,120]
[354732070,1740649840625,-500.0,0.00057534,120]
[354732072,1740649840635,-500.0,0.00057534,120]
[354732074,1740649840644,-514.39867934,0.00057534,120]
[354732076,1740649840653,-506.47527427,0.00057534,120]
[354732078,1740649840663,-506.5055884,0.00057534,120]
[354732080,1740649840673,-507.19220414,0.00057534,120]
[354732082,1740649840682,-505.91879508,0.00057534,120]
[354732084,1740649840691,-503.26986352,0.00057534,120]
[354732086,1740649840702,-505.90384413,0.00057534,120]
[354732087,1740649840711,-500.0,0.00057534,120]
[354732089,1740649840719,-648.76,0.00057534,120]
[354732091,1740649840729,-500.0,0.00057534,120]
[354732093,1740649840738,-500.36162892,0.00057534,120]
[354732095,1740649840747,-500.0,0.00057534,120]
[354732097,1740649840756,-500.0,0.00057534,120]
[354732099,1740649840765,-505.87811595,0.00057534,120]
[354732101,1740649840775,-502.75185623,0.00057534,120]
[354732103,1740649840783,-575.59684994,0.00057534,120]
[354732105,1740649840793,-500.0,0.00057534,120]
[354732107,1740649840802,-500.0,0.00057534,120]
[354732109,1740649840811,-500.0,0.00057534,120]
[354732111,1740649840820,-500.0,0.00057534,120]
[354732113,1740649840828,-500.0,0.00057534,120]
[354732115,1740649840838,-500.0,0.00057534,120]
[354732117,1740649840848,-632.25,0.00057534,120]
[354732119,1740649840857,-500.0,0.00057534,120]
[354732121,1740649840866,-500.0,0.00057534,120]
[354732123,1740649840875,-500.0,0.00057534,120]
[354732125,1740649840884,-500.0,0.00057534,120]
[354732127,1740649840894,-292.31990978,0.00057534,120]
[354732129,1740649840903,-382.80000906,0.00057534,120]
[354732131,1740649840912,-500.0,0.00057534,120]
[354732133,1740649840921,-500.0,0.00057534,120]
[354732135,1740649840930,-500.0,0.00057534,120]
[354732137,1740649840939,-500.0,0.00057534,120]
[354732139,1740649840949,-504.98477724,0.00057534,120]
[354732142,1740649840969,-500.0,0.00057534,120]
[354732144,1740649840978,-570.001388,0.00057534,120]
[354732146,1740649840987,-500.0,0.00057534,120]
[354732148,1740649840998,-500.0,0.00057534,120]
[354732150,1740649841007,-500.0,0.00057534,120]
[354732152,1740649841016,-500.0,0.00057534,120]
[354732154,1740649841026,-500.0,0.00057534,120]
[354732156,1740649841035,-495.0,0.00057534,120]
[354732158,1740649841045,-500.0,0.00057534,120]
[354732160,1740649841054,-385.17400128,0.00057534,120]
[354732162,1740649841065,-1447.0,0.00057534,120]
[354732164,1740649841074,-505.06580047,0.00057534,120]
[354732166,1740649841083,-500.0,0.00057534,120]
[354732168,1740649841092,-505.44043303,0.00057534,120]
[354732170,1740649841102,-504.54436059,0.00057534,120]
[354732172,1740649841111,-503.24292708,0.00057534,120]
[354732174,1740649841120,-505.62822268,0.00057534,120]
[354732176,1740649841130,-513.85999919,0.00057534,120]
[354732178,1740649841139,-500.11936163,0.00057534,120]
[354732180,1740649841148,-3010.72,0.00057534,120]
[354732182,1740649841158,-500.0,0.00057534,120]
[354732184,1740649841167,-3831.43,0.00057534,120]
[354732186,1740649841175,-500.0,0.00057534,120]
[354732188,1740649841184,-506.40481897,0.00057534,120]
[354732190,1740649841194,-500.0,0.00057534,120]
[354732192,1740649841203,-500.0,0.00057534,120]
[354732194,1740649841212,-500.0,0.00057534,120]
[354732196,1740649841221,-500.0,0.00057534,120]
[354732198,1740649841230,-500.0,0.00057534,120]
[354732199,1740649841239,-500.0,0.00057534,120]
[354732202,1740649841250,-500.0,0.00057534,120]
[354732204,1740649841260,-500.0,0.00057534,120]
[354732206,1740649841269,-500.0,0.00057534,120]
[354732207,1740649841278,-500.0,0.00057534,120]
[354732209,1740649841288,-500.0,0.00057534,120]
[354732211,1740649841297,-500.0,0.00057534,120]
[354732214,1740649841306,-500.0,0.00057534,120]
[354732215,1740649841315,-500.0,0.00057534,120]
[354732218,1740649841325,-500.0,0.00057534,120]
[354732220,1740649841334,-557.09,0.00057534,120]
[354732222,1740649841343,-500.0,0.00057534,120]
[354732224,1740649841353,-500.0,0.00057534,120]
[354732226,1740649841363,-500.0,0.00057534,120]
[354732228,1740649841372,-500.0,0.00057534,120]
[354732230,1740649841381,-497.65564626,0.00057534,120]
[354732232,1740649841391,-647.01,0.00057534,120]
[354732234,1740649841400,-500.80129874,0.00057534,120]
[354732236,1740649841409,-500.0,0.00057534,120]
[354732238,1740649841418,-500.0,0.00057534,120]
[354732240,1740649841427,-500.0,0.00057534,120]
[354732241,1740649841438,-500.0,0.00057534,120]
[354732243,1740649841447,-500.0,0.00057534,120]
[354732246,1740649841457,-500.0,0.00057534,120]
[354732248,1740649841467,-506.69654371,0.00057534,120]
[354732250,1740649841475,-500.0,0.00057534,120]
[354732252,1740649841485,-500.0,0.00057534,120]
[354732254,1740649841494,-500.0,0.00057534,120]
[354732255,1740649841505,-553.51,0.00057534,40]
[354732257,1740649841514,-515.86233951,0.00057534,120]
[354732259,1740649841524,-8452.09,0.00057534,120]
[354732261,1740649841533,-439.03141748,0.00057534,120]
[354732263,1740649841542,-500.0,0.00057534,120]
[354732265,1740649841552,-500.0,0.00057534,120]
[354732267,1740649841563,-500.0,0.00057534,120]
[354732269,1740649841571,-500.0,0.00057534,120]
[354732271,1740649841580,-500.0,0.00057534,120]
[354732273,1740649841590,-523.88,0.00057534,120]
[354732275,1740649841599,-500.0,0.00057534,120]
[354732277,1740649841608,-500.0,0.00057534,120]
[354732279,1740649841617,-500.0,0.00057534,120]
[354732281,1740649841626,-500.0,0.00057534,120]
[354732283,1740649841635,-500.0,0.00057534,120]
[354732285,1740649841645,-1200.99,0.00057534,120]
[354732287,1740649841653,-500.0,0.00057534,120]
[354732289,1740649841662,-500.0,0.00057534,120]
[354732291,1740649841671,-500.0,0.00057534,120]
[354732293,1740649841680,-952.08,0.00057534,120]
[354732295,1740649841689,-500.0,0.00057534,120]
[354732297,1740649841698,-500.0,0.00057534,120]
[354732299,1740649841707,-500.0,0.00057534,120]
[354732301,1740649841716,-500.0,0.00057534,120]
[354732303,1740649841725,-500.0,0.00057534,120]
[354732305,1740649841735,-500.0,0.00057534,120]
[354732307,1740649841743,-524.86,0.00057534,120]
[354732309,1740649841752,-500.0,0.00057534,120]
[354732311,1740649841761,-658.85,0.00057534,120]
[354732313,1740649841770,-500.0,0.00057534,120]
[354732315,1740649841779,-3535.84,0.00057534,120]
[354732317,1740649841789,-258.41823418,0.00057534,120]
[354732319,1740649841798,-545.74015705,0.00057534,120]
[354732321,1740649841807,-500.0,0.00057534,120]
[354732322,1740649841816,-502.20255079,0.00057534,120]
[354732324,1740649841825,-500.0,0.00057534,120]
[354732326,1740649841835,-500.0,0.00057534,120]
[354732329,1740649841844,-214.00969335,0.00057534,120]
[354732331,1740649841854,-447.70064469,0.00057534,120]
[354732332,1740649841863,-500.0,0.00057534,120]
[354732334,1740649841873,-500.0,0.00057534,120]
[354732336,1740649841882,-500.0,0.00057534,120]
[354732338,1740649841891,-500.0,0.00057534,120]
[354732340,1740649841900,-503.37436682,0.00057534,120]
[354732342,1740649841909,-508.12346485,0.00057534,120]
[354732344,1740649841918,-500.0,0.00057534,120]
[354732346,1740649841927,-500.0,0.00057534,120]
[354732348,1740649841936,-500.0,0.00057534,120]
[354732350,1740649841946,-617.90000006,0.00057534,120]
[354732352,1740649841956,-200.0,0.0005757,15]
[354732354,1740649841968,-4506.62935413,0.00057588,15]